fUSD/lending_fUSD_20250326
["ID","MTS","AMOUNT","RATE_DAILY","PERIOD"]
[356690980,1742968245587,-10736.22631913,0.0003079,2]
[356690996,1742968245719,-2893.71314321,0.0003079,2]
[356691026,1742968254066,-155.426093,0.0003079,2]
[356691027,1742968268060,175.27583,7.945e-05,2]
[356691028,1742969040059,995.74,0.00032249,120]
[356691052,1742969307561,155.0,0.00015,10]
[356691064,1742969431598,-250.0,0.00025,2]
[356691067,1742969431608,-350.0,0.00025925,3]
[356691069,1742969431618,-155.1,0.00026849,2]
[356691071,1742969431628,-350.0,0.00026856,3]
[356691073,1742969431637,-350.0,0.000275,3]
[356691075,1742969431647,-1110.75,0.00027795,2]
[356691077,1742969431656,-202.56087196,0.0002791,2]
[356691079,1742969431665,-202.56087195,0.00028284,2]
[356691081,1742969431675,-150.0,0.00028384,2]
[356691083,1742969431684,-150.0,0.00028384,2]
[356691085,1742969431693,-735.80483973,0.000285,2]
[356691086,1742969431702,-1286.98,0.00028892,2]
[356691087,1742969431711,-200.0,0.00028906,2]
[356691088,1742969431720,-792.65,0.00028966,2]
[356691089,1742969431730,-300.0,0.00028995,2]
[356691090,1742969431739,-150.0,0.00029011,7]
[356691091,1742969431748,-201.27,0.0002903,120]
[356691092,1742969431757,-151.0,0.00029068,2]
[356691093,1742969431766,-161.69221938,0.00029073,5]
[356691094,1742969431775,-150.44,0.00029076,2]
[356691095,1742969431784,-300.0,0.00029085,2]
[356691096,1742969431796,-23900.0,0.00029086,2]
[356691097,1742969431806,-155.65,0.0002913,30]
[356691098,1742969431815,-653.26,0.00029182,2]
[356691099,1742969431825,-600.0,0.0002919,2]
[356691100,1742969431834,-560.33,0.0002919,2]
[356691101,1742969431844,-683.46,0.00029219,2]
[356691102,1742969431854,-1000.0,0.0002926,2]
[356691103,1742969431863,-407.45,0.00029389,2]
[356691104,1742969431872,-161.5436642,0.00029412,5]
[356691105,1742969431881,-206.20749294,0.00029412,5]
[356691106,1742969431890,-200.82668695,0.00029412,5]
[356691107,1742969431900,-496.20913077,0.00029412,2]
[356691108,1742969431912,-153.22609839,0.00029417,5]
[356691109,1742969431921,-505.05643104,0.00029417,5]
[356691110,1742969431931,-500.0,0.00029417,5]
[356691111,1742969431940,-250.0,0.00029438,2]
[356691112,1742969431950,-999.99,0.00029438,2]
[356691113,1742969431960,-150.99,0.00029438,2]
[356691114,1742969431970,-827.31,0.00029438,2]
[356691115,1742969431979,-150.0,0.00029534,2]
[356691116,1742969431988,-285.55,0.00029598,2]
[356691117,1742969431997,-7198.15532229,0.00029601,2]
[356691118,1742969432041,-4451.07467771,0.00029601,2]
[356691120,1742969432050,-349.62,0.00029657,2]
[356691122,1742969432059,-285.55,0.00029661,2]
[356691124,1742969432069,-285.55,0.00029723,2]
[356691126,1742969432080,-285.55,0.00029785,2]
[356691127,1742969432089,-285.55,0.00029848,2]
[356691128,1742969432099,-284.77547774,0.000299,5]
[356691129,1742969432108,-285.55,0.0002991,2]
[356691130,1742969432117,-166.82,0.0002992,2]
[356691131,1742969432127,-183.25,0.00029962,2]
[356691132,1742969432136,-1825.5219584,0.00029963,4]
[356691133,1742969432145,-177.076,0.00029969,24]
[356691134,1742969432155,-1616.302,0.00029969,24]
[356691136,1742969432164,-285.55,0.00029972,2]
[356691138,1742969432173,-285.55,0.00030034,2]
[356691139,1742969432182,-1110.75,0.00030059,2]
[356691140,1742969432191,-285.55,0.00030097,2]
[356691141,1742969432200,-285.55,0.00030159,2]
[356691142,1742969432209,-285.55,0.00030221,2]
[356691143,1742969432218,-285.55,0.00030284,2]
[356691144,1742969432228,-167.48,0.0003029,2]
[356691145,1742969432237,-285.55,0.00030346,2]
[356691146,1742969432246,-285.55,0.00030408,2]
[356691147,1742969432255,-285.55,0.00030471,2]
[356691148,1742969432264,-535.85997,0.0003048,46]
[356691149,1742969432273,-15862.90899152,0.0003049,2]
[356691151,1742969437537,-304.7835,0.0003049,2]
[356691152,1742969437595,-2598.32750638,0.0003049,2]
[356691153,1742969437607,-524.295,0.0003049,2]
[356691154,1742969437763,-4536.6257921,0.0003049,2]
[356691169,1742969440095,-216.5305851,0.00026749,2]
[356691170,1742969440105,-3628.49976652,0.0003049,2]
[356691171,1742969440115,-62.61934823,0.00030533,2]
[356691195,1742969442754,-222.93065177,0.00030533,2]
[356691196,1742969442763,-200.0,0.00030543,2]
[356691197,1742969442773,-200.0,0.00030544,2]
[356691198,1742969442782,-285.55,0.00030595,2]
[356691199,1742969442791,-560.33,0.00030649,2]
[356691200,1742969442800,-285.55,0.00030657,2]
[356691201,1742969442809,-2939.05596682,0.0003068,2]
[356691285,1742969882842,-150.0,0.00018384,3]
[356691286,1742969891646,172.02452093,0.000125,3]
[356691287,1742970308128,139824.72417,0.00012,2]
[356691288,1742970308161,418443.47506467,0.00012,2]
[356691296,1742970472227,539.61915836,0.0001,2]
[356691297,1742970475980,27990.69865641,0.0001,2]
[356691303,1742970561258,500.0,0.00032256,120]
[356691307,1742970590517,270.36942898,0.00032256,30]
[356691315,1742970631991,-8395.14501345,0.00016,2]
[356691316,1742970632000,-350.0,0.00016356,3]
[356691317,1742970632010,-167.0,0.00016712,2]
[356691318,1742970632019,-350.0,0.000176,3]
[356691319,1742970632028,-350.0,0.00017731,3]
[356691320,1742970632037,-190.3793123,0.00018,2]
[356691321,1742970632046,-300.0,0.00018972,2]
[356691322,1742970632056,-353.78125824,0.00018973,2]
[356691323,1742970632065,-500.0,0.00018973,2]
[356691324,1742970632075,-399.79394449,0.00018973,2]
[356691325,1742970632084,-500.0,0.00018973,2]
[356691326,1742970632093,-500.0,0.00018973,2]
[356691327,1742970632102,-357.05709239,0.00018973,2]
[356691328,1742970632111,-151.0,0.00018989,2]
[356691329,1742970632120,-600.0,0.00018999,2]
[356691330,1742970632129,-179.95,0.00018999,2]
[356691331,1742970632138,-457.6466683,0.00018999,2]
[356691332,1742970632147,-500.0,0.00018999,2]
[356691333,1742970632156,-366.47797604,0.00018999,2]
[356691334,1742970632165,-51215.45011118,0.00019,2]
[356691335,1742970632174,-969.91,0.00019,2]
[356691336,1742970632184,-156.587,0.00019537,2]
[356691337,1742970632193,-141951.93123831,0.000196,2]
[356691338,1742970632202,-623.64789885,0.00019985,2]
[356691339,1742970632212,-162.380719,0.00020085,2]
[356691340,1742970632221,-161.01559252,0.0002035,2]
[356691341,1742970632230,-159.66802009,0.0002035,2]
[356691342,1742970632239,-503.12064909,0.0002035,2]
[356691343,1742970632248,-500.0,0.0002035,2]
[356691344,1742970632257,-615.69044139,0.0002035,2]
[356691345,1742970632267,-168.3888056,0.00020633,2]
[356691346,1742970632276,-420.0,0.0002068,2]
[356691347,1742970632286,-157.3,0.00020819,2]
[356691348,1742970632296,-157.3,0.00020986,2]
[356691349,1742970632305,-157.3,0.00021152,2]
[356691350,1742970632314,-174.61919141,0.00021181,2]
[356691351,1742970632324,-157.3,0.00021319,2]
[356691352,1742970632333,-157.3,0.00021486,2]
[356691353,1742970632342,-157.3,0.00021652,2]
[356691354,1742970632351,-2000.0,0.00021673,4]
[356691355,1742970632361,-181.08010149,0.00021729,2]
[356691356,1742970632370,-187.78006525,0.00022277,2]
[356691358,1742970632379,-400.50221214,0.000224,2]
[356691360,1742970632388,-370.0,0.00022541,2]
[356691361,1742970632397,-194.72792766,0.00022825,2]
[356691362,1742970632406,-201.93286099,0.00023373,2]
[356691363,1742970632415,-173.127,0.00023373,2]
[356691364,1742970632425,-173.127,0.00023373,2]
[356691365,1742970632434,-173.127,0.00023373,2]
[356691366,1742970632443,-544.06,0.000235,2]
[356691367,1742970632452,-501.310324,0.0002355,2]
[356691368,1742970632462,-500.0,0.00023577,2]
[356691369,1742970632471,-13186.92827178,0.0002361,7]
[356691370,1742970632480,-209.40437684,0.00023921,2]
[356691371,1742970632489,-1024.55,0.00024,5]
[356691372,1742970632498,-379.28304048,0.0002401,2]
[356691373,1742970632507,-2000.0,0.00024291,4]
[356691374,1742970632516,-500.0,0.00024452,2]
[356691375,1742970632526,-1000.0,0.00024452,2]
[356691376,1742970632535,-217.15233878,0.00024469,2]
[356691377,1742970632544,-338.14284579,0.000245,3]
[356691378,1742970632553,-225.18697532,0.00025017,2]
[356691379,1742970632562,-233.51889341,0.00025565,2]
[356691380,1742970632571,-1000.0,0.00025829,2]
[356691381,1742970632580,-408.30468689,0.00026113,2]
[356691382,1742970632589,-544.06,0.00026437,120]
[356691383,1742970632598,-216.5305851,0.000267,2]
[356691384,1742970632607,-155.34,0.00026849,2]
[356691385,1742970632616,-159.22,0.00026849,2]
[356691386,1742970632625,-2000.0,0.00026909,4]
[356691387,1742970632634,-168.51,0.00027356,2]
[356691388,1742970632643,-150.0,0.00027378,2]
[356691389,1742970632651,-150.0,0.00027423,2]
[356691390,1742970632660,-544.21,0.00027448,2]
[356691391,1742970632669,-150.0,0.00027545,7]
[356691392,1742970632679,-1031.55,0.00027906,2]
[356691393,1742970632688,-500.0,0.0002801,30]
[356691394,1742970632696,-150.0,0.00028393,2]
[356691395,1742970632705,-200.0,0.00028938,2]
[356691396,1742970632715,-1367.7476,0.00029176,2]
[356691397,1742970632724,-150.44,0.00029265,2]
[356691398,1742970632732,-336.19,0.00029276,2]
[356691399,1742970632743,-150.99,0.00029276,2]
[356691400,1742970632752,-9999.99,0.00029276,2]
[356691401,1742970632761,-999.99,0.00029276,2]
[356691402,1742970632770,-355.87,0.00029276,2]
[356691403,1742970632779,-623.64789882,0.0002929,18]
[356691404,1742970632791,-600.0,0.0002931,2]
[356691405,1742970632802,-666.6,0.00029345,2]
[356691406,1742970632811,-1000.0,0.00029352,2]
[356691407,1742970632820,-23900.0,0.00029363,2]
[356691408,1742970632830,-544.06,0.00029375,120]
[356691409,1742970632839,-250.0,0.00029442,2]
[356691410,1742970632848,-2000.0,0.00029527,4]
[356691411,1742970632858,-157.61,0.00029534,2]
[356691412,1742970632974,-150.0,0.00029534,2]
[356691413,1742970632984,-453.67,0.00029781,2]
[356691414,1742970632994,-811.48,0.00029781,2]
[356691415,1742970633004,-443.55,0.00029781,2]
[356691416,1742970633014,-781.87,0.00029781,2]
[356691417,1742970633024,-781.87,0.00029781,2]
[356691418,1742970633034,-443.55,0.00029781,2]
[356691419,1742970633043,-781.87,0.00029781,2]
[356691420,1742970633053,-443.55,0.00029781,2]
[356691421,1742970633062,-781.87,0.00029781,2]
[356691422,1742970633072,-155.426093,0.00029781,7]
[356691423,1742970633081,-266.768445,0.00029781,7]
[356691424,1742970633091,-639.51,0.00029806,2]
[356691425,1742970633100,-19999.99,0.00029815,2]
[356691426,1742970633110,-639.51,0.00029869,2]
[356691427,1742970633120,-639.51,0.00029932,2]
[356691428,1742970633129,-2081.3725247,0.00029963,4]
[356691429,1742970633139,-639.51,0.00029995,2]
[356691430,1742970633149,-160.6939947,0.0003,120]
[356691431,1742970633158,-639.51,0.00030057,2]
[356691432,1742970633174,-639.51,0.0003012,2]
[356691433,1742970633188,-200.0,0.00030144,2]
[356691434,1742970633197,-1031.55,0.0003017,2]
[356691435,1742970633207,-219.46066212,0.0003018,2]
[356691436,1742970633217,-639.51,0.00030183,2]
[356691437,1742970633227,-1293.042,0.00030183,25]
[356691438,1742970633237,-639.51,0.00030246,2]
[356691439,1742970633246,-191.86,0.0003025,2]
[356691440,1742970633256,-4234.02047317,0.00030298,2]
[356691441,1742970633266,-639.51,0.00030308,2]
[356691442,1742970633276,-446.54998,0.0003037,46]
[356691443,1742970633286,-639.51,0.00030371,2]
[356691444,1742970633296,-639.51,0.00030434,2]
[356691445,1742970633306,-639.51,0.00030496,2]
[356691446,1742970633316,-219.46066212,0.00030514,2]
[356691447,1742970633326,-313.9753,0.00030521,2]
[356691448,1742970633336,-801.344,0.00030521,2]
[356691449,1742970633346,-2959.3144,0.00030521,2]
[356691450,1742970633355,-9459.8084,0.00030521,2]
[356691451,1742970633365,-4140.18435053,0.00030521,2]
[356691452,1742970633375,-200.0,0.00030544,2]
[356691453,1742970633385,-639.51,0.00030559,2]
[356691454,1742970633395,-4329.59,0.0003062,2]
[356691455,1742970633404,-6035.96,0.0003062,2]
[356691456,1742970633414,-4760.4,0.0003062,2]
[356691457,1742970633424,-152.759347,0.00030621,7]
[356691458,1742970633433,-152.133243,0.00030621,7]
[356691459,1742970633443,-639.51,0.00030622,2]
[356691460,1742970633453,-503.27977584,0.00030673,5]
[356691461,1742970633463,-500.0,0.00030673,2]
[356691462,1742970633472,-159.81378055,0.00030682,2]
[356691463,1742970633481,-639.51,0.00030685,2]
[356691464,1742970633491,-1000.0,0.00030688,2]
[356691465,1742970633501,-1000.0,0.00030709,2]
[356691466,1742970633511,-150.0,0.00030709,2]
[356691467,1742970633520,-285.55,0.0003072,2]
[356691468,1742970633530,-1014.0,0.0003072,3]
[356691469,1742970633539,-336.19,0.0003074,2]
[356691470,1742970633549,-639.51,0.00030747,2]
[356691471,1742970633558,-1336.7575,0.0003077,2]
[356691472,1742970633568,-6279.6554,0.0003077,2]
[356691473,1742970633578,-500.40253572,0.00030773,5]
[356691474,1742970633588,-31783.1533,0.00030773,2]
[356691475,1742970633598,-151.0,0.00030773,7]
[356691476,1742970633607,-159.04115,0.00030773,7]
[356691477,1742970633617,-158.259214,0.00030773,7]
[356691478,1742970633627,-151.0,0.00030773,7]
[356691479,1742970633636,-166.431412,0.00030773,7]
[356691480,1742970633646,-153.234196,0.00030773,7]
[356691481,1742970633655,-455.12542,0.00030773,7]
[356691482,1742970633665,-151.0,0.00030773,7]
[356691483,1742970633674,-311.42317441,0.00030773,2]
[356691484,1742970633684,-22687.5770449,0.00030778,2]
[356691485,1742970633693,-151.0,0.0003078,7]
[356691486,1742970633702,-151.0,0.0003078,7]
[356691487,1742970633712,-455.12542,0.0003078,7]
[356691488,1742970633722,-151.0,0.0003078,7]
[356691489,1742970633732,-879.53182373,0.0003078,3]
[356691490,1742970633742,-1000.0,0.0003078,2]
[356691491,1742970633752,-2500.0,0.0003078,2]
[356691492,1742970633761,-66183.2666,0.0003078,2]
[356691493,1742970633771,-285.55,0.00030782,2]
[356691494,1742970633780,-10047.7243636,0.00030788,2]
[356691495,1742970633791,-2958.8305584,0.00030788,2]
[356691496,1742970633802,-5499.2356329,0.00030788,2]
[356691497,1742970633812,-1716.6372216,0.00030788,2]
[356691498,1742970633821,-879.53182372,0.0003079,3]
[356691499,1742970633831,-693.96017748,0.00030799,2]
[356691500,1742970633840,-151.0,0.000308,7]
[356691501,1742970633850,-151.0,0.000308,7]
[356691502,1742970633861,-154.73056,0.000308,7]
[356691503,1742970633871,-151.0,0.000308,7]
[356691504,1742970633881,-222.0,0.000308,2]
[356691505,1742970633891,-3300.0,0.000308,11]
[356691506,1742970633900,-879.53182372,0.000308,3]
[356691507,1742970633909,-160.81,0.00030809,2]
[356691508,1742970633919,-639.51,0.0003081,2]
[356691509,1742970633929,-200.03,0.00030829,2]
[356691510,1742970633938,-150.65,0.0003086,2]
[356691511,1742970633948,-300.0,0.00030864,2]
[356691512,1742970633958,-22687.5770449,0.00030869,2]
[356691513,1742970633967,-9199.2639535,0.00030869,2]
[356691514,1742970633976,-151.0,0.00030869,7]
[356691515,1742970633986,-153.368664,0.00030869,7]
[356691516,1742970633996,-151.0,0.00030869,7]
[356691517,1742970634005,-455.12542,0.00030869,7]
[356691518,1742970634015,-151.0,0.00030869,7]
[356691519,1742970634024,-151.653221,0.0003087,7]
[356691520,1742970634034,-430.712023,0.0003087,7]
[356691521,1742970634043,-430.712023,0.0003087,7]
[356691522,1742970634053,-153.063219,0.0003087,7]
[356691523,1742970634063,-152.669276,0.0003087,7]
[356691524,1742970634073,-151.0,0.0003087,7]
[356691525,1742970634083,-156.331527,0.0003087,7]
[356691526,1742970634092,-151.0,0.0003087,7]
[356691527,1742970634102,-45375.1540898,0.0003087,2]
[356691528,1742970634113,-150.65,0.0003087,2]
[356691529,1742970634123,-150.65,0.0003087,2]
[356691530,1742970634133,-639.51,0.00030873,2]
[356691531,1742970634143,-8350.8035434,0.00030879,2]
[356691532,1742970634153,-2708.9779054,0.00030879,2]
[356691533,1742970634163,-2459.1252524,0.00030879,2]
[356691534,1742970634173,-5034.8634476,0.00030879,2]
[356691535,1742970634182,-4570.4912622,0.00030879,2]
[356691536,1742970634193,-1571.6791526,0.00030879,2]
[356691537,1742970634203,-1426.7210837,0.00030879,2]
[356691538,1742970634213,-151.0,0.00030879,7]
[356691539,1742970634224,-150.65,0.00030879,2]
[356691540,1742970634235,-154.560245,0.0003088,7]
[356691541,1742970634246,-151.0,0.0003088,7]
[356691542,1742970634256,-151.0,0.0003088,7]
[356691543,1742970634266,-152.053705,0.0003088,7]
[356691544,1742970634276,-153.148623,0.0003088,7]
[356691545,1742970634286,-430.712023,0.0003088,7]
[356691546,1742970634295,-430.712023,0.0003088,7]
[356691547,1742970634305,-155.64719,0.0003088,7]
[356691548,1742970634315,-172.074769,0.0003088,7]
[356691549,1742970634326,-151.0,0.0003088,7]
[356691550,1742970634335,-154.477838,0.0003088,7]
[356691551,1742970634345,-151.0,0.0003088,7]
[356691552,1742970634355,-151.0,0.0003088,7]
[356691553,1742970634365,-455.12542,0.0003088,7]
[356691554,1742970634375,-151.0,0.0003088,7]
[356691555,1742970634385,-204188.193404,0.0003088,2]
[356691556,1742970634395,-42078.27251314,0.0003088,2]
[356691563,1742970637874,-786.946942,0.0003088,2]
[356691564,1742970637953,-9717.91747506,0.0003088,2]
[356691565,1742970637962,-150.65,0.0003088,2]
[356691566,1742970637972,-150.65,0.0003088,2]
[356691567,1742970637981,-3767.5855201,0.0003088,2]
[356691568,1742970637990,-430.712023,0.00030889,7]
[356691569,1742970638000,-430.712023,0.00030889,7]
[356691570,1742970638010,-151.0,0.0003089,7]
[356691571,1742970638019,-430.712023,0.0003089,7]
[356691572,1742970638029,-430.712023,0.0003089,7]
[356691573,1742970638038,-430.712023,0.0003089,7]
[356691574,1742970638047,-430.712023,0.0003089,7]
[356691575,1742970638057,-151.0,0.0003089,7]
[356691576,1742970638066,-197.315289,0.0003089,7]
[356691577,1742970638075,-234.929985,0.0003089,7]
[356691578,1742970638085,-455.12542,0.0003089,7]
[356691579,1742970638094,-18352.00905583,0.0003089,2]
[356691583,1742970640149,-572.99758014,0.0003089,2]
[356691584,1742970640236,-207950.76381303,0.0003089,2]
[356691585,1742970640247,-151.0,0.0003089,7]
[356691586,1742970640257,-58118.2039754,0.0003089,2]
[356691587,1742970640267,-150.65,0.0003089,2]
[356691588,1742970640276,-150.65,0.0003089,2]
[356691589,1742970640286,-150.65,0.0003089,2]
[356691590,1742970640296,-150.65,0.0003089,2]
[356691591,1742970640306,-150.65,0.0003089,2]
[356691592,1742970640316,-150.65,0.0003089,2]
[356691593,1742970640326,-150.65,0.0003089,2]
[356691594,1742970640336,-150.65,0.0003089,2]
[356691595,1742970640346,-1144.12119965,0.00030899,15]
[356691596,1742970640457,-165.38,0.00030899,2]
[356691597,1742970640469,-150.0,0.00030899,30]
[356691598,1742970640479,-150.0,0.00030899,2]
[356691599,1742970640488,-1711.0,0.000309,5]
[356691600,1742970640498,-109993.31982684,0.000309,2]
[356691601,1742970640510,-234941.805,0.000309,2]
[356691643,1742970644790,-182.48489189,0.00019599,2]
[356691644,1742970644802,-318.00845336,0.000309,2]
[356691649,1742970645893,-348.894065,0.00029781,7]
[356691650,1742970645906,-348.894065,0.00030521,7]
[356691651,1742970645919,-348.894065,0.00030621,7]
[356691652,1742970645931,-348.894065,0.00030773,7]
[356691653,1742970645944,-348.894065,0.0003078,7]
[356691654,1742970645957,-348.894065,0.00030869,7]
[356691655,1742970645970,-668.99736844,0.000309,2]
[356691656,1742970646005,-348.894065,0.0003087,7]
[356691657,1742970646019,-112260.99427633,0.000309,2]
[356691658,1742971059697,203.34326552,0.00032252,120]
[356691659,1742971358148,-151.33,0.00013699,2]
[356691698,1742971832115,-67.09002402,0.00013699,2]
[356691699,1742971832124,-350.0,0.00014384,3]
[356691700,1742971832134,-350.0,0.00015068,3]
[356691701,1742971832143,-350.0,0.00017822,3]
[356691702,1742971832153,-150.0,0.0002087,2]
[356691703,1742971832163,-250.0,0.00025,2]
[356691704,1742971832172,-157.7,0.00026849,2]
[356691705,1742971832182,-300.0,0.00027,2]
[356691706,1742971832191,-168.25,0.00027758,5]
[356691707,1742971832200,-1387.72,0.00027846,2]
[356691708,1742971832209,-202.67546979,0.00028208,2]
[356691709,1742971832219,-159.29,0.00028208,2]
[356691710,1742971832228,-150.0,0.00028777,7]
[356691711,1742971832237,-160.81,0.00028786,2]
[356691712,1742971832247,-200.0,0.00028803,2]
[356691713,1742971832256,-157.75,0.00028804,30]
[356691714,1742971832266,-489.69,0.00028813,2]
[356691715,1742971832275,-190.38,0.00028943,2]
[356691716,1742971832284,-350.0,0.00029,2]
[356691717,1742971832293,-217.30502715,0.00029033,2]
[356691718,1742971832308,-418.4970759,0.00029033,2]
[356691719,1742971832319,-1133.11323801,0.00029033,2]
[356691720,1742971832334,-963.20394335,0.00029033,2]
[356691721,1742971832353,-1434.24613958,0.00029033,2]
[356691722,1742971832365,-3723.35498917,0.00029033,2]
[356691723,1742971832376,-975.09804948,0.00029033,2]
[356691724,1742971832387,-9215.87563297,0.00029033,2]
[356691725,1742971832404,-322.26793109,0.00029033,2]
[356691726,1742971832416,-5497.0379733,0.00029033,2]
[356691727,1742971832425,-234.58,0.00029063,2]
[356691728,1742971832436,-250.0,0.00029333,2]
[356691729,1742971832446,-396.57780649,0.0002938,2]
[356691730,1742971832455,-78.18597193,0.00029619,2]
[356691731,1742971832472,-921.81402807,0.00029619,2]
[356691732,1742971832481,-900.22,0.0002967,2]
[356691733,1742971832490,-6655.7665,0.00029732,2]
[356691734,1742971832500,-1576.5583,0.00029732,2]
[356691735,1742971832509,-4324.71,0.00029815,2]
[356691736,1742971832522,-3994.38322229,0.00029822,2]
[356691737,1742971832531,-1034.433,0.00029831,24]
[356691738,1742971832540,-300.0,0.00029831,2]
[356691739,1742971832549,-9546.28123814,0.00029832,2]
[356691740,1742971832565,-5367.68773514,0.00029832,2]
[356691741,1742971832580,-13006.82943429,0.00029832,2]
[356691742,1742971832593,-5669.24041241,0.00029832,2]
[356691744,1742971832604,-3071.705,0.00029832,2]
[356691745,1742971832616,-2253.71798314,0.00029832,2]
[356691746,1742971832662,-10545.58539688,0.00029832,2]
[356691747,1742971832671,-1500.0,0.00029858,60]
[356691748,1742971832680,-359.53700522,0.000299,5]
[356691749,1742971832690,-573.47,0.00029929,2]
[356691750,1742971832700,-1561.0293935,0.00029972,4]
[356691751,1742971832710,-3956.83757562,0.0003,3]
[356691753,1742971832720,-763.713,0.0003,2]
[356691755,1742971832730,-486.32824097,0.000301,2]
[356691757,1742971832739,-1387.72,0.0003011,2]
[356691759,1742971832748,-6697.23704853,0.00030127,2]
[356691761,1742971832758,-234.58,0.00030516,2]
[356691763,1742971832767,-200.0,0.00030598,2]
[356691765,1742971832776,-3726.16591545,0.0003064,2]
[356691766,1742971832785,-35533.75584669,0.00030679,2]
[356691767,1742971832795,-1237.05277731,0.00030696,5]
[356691768,1742971832804,-1237.05277731,0.00030696,5]
[356691770,1742971832813,-2500.0,0.000307,2]
[356691772,1742971832822,-1000.0,0.000307,2]
[356691774,1742971832831,-623.64789882,0.000307,23]
[356691776,1742971832841,-161.83175454,0.000307,2]
[356691778,1742971832850,-354.72,0.0003074,2]
[356691780,1742971832859,-346.52,0.0003074,2]
[356691782,1742971832868,-346.52,0.0003074,2]
[356691784,1742971832877,-160.55744128,0.00030773,5]
[356691786,1742971832886,-500.0,0.00030773,5]
[356691788,1742971832896,-9698.274,0.000308,2]
[356691790,1742971832906,-500.0,0.000308,2]
[356691792,1742971832916,-1000.0,0.000308,2]
[356691794,1742971832925,-1361.6491,0.000308,2]
[356691796,1742971832934,-239.47795535,0.000308,2]
[356691801,1742971832973,-7450.71824465,0.000308,2]
[356691803,1742971832983,-19941.7926,0.000308,2]
[356691805,1742971832993,-13986.19138275,0.000308,2]
[356691808,1742971833005,-1386.10575894,0.000308,2]
[356691810,1742971833016,-718.78087629,0.000308,2]
[356691833,1742971837908,-99261.43888202,0.000308,2]
[356691834,1742971837919,-7590.9059,0.000308,2]
[356691835,1742971837928,-10948.11666686,0.000308,2]
[356691836,1742971837938,-311.42317435,0.000308,2]
[356691837,1742971837947,-500.0,0.00030873,2]
[356691838,1742971837957,-1144.12119965,0.00030899,15]
[356691839,1742971837966,-165.38,0.00030899,2]
[356691840,1742971837975,-176469.24184892,0.000309,2]
[356691841,1742971837991,-1320.27581378,0.000309,2]
[356691859,1742971840297,-2500.0,0.000307,2]
[356691860,1742971840306,-44040.31461636,0.000309,2]
[356691861,1742971840315,-257.31984121,0.000309,2]
[356691862,1742971840325,-1414.7727746,0.000309,2]
[356691863,1742971840334,-34034.14546728,0.000309,2]
[356691864,1742971840343,-714.15308121,0.000309,2]
[356691865,1742971840352,-200.0,0.000309,2]
[356691866,1742971840361,-656.35852,0.000309,47]
[356691867,1742971840370,-500.0,0.000309,7]
[356691868,1742971840379,-150.65,0.00030904,2]
[356691869,1742971840388,-5782.9714123,0.00030914,2]
[356691870,1742971840397,-3208.3197036,0.00030914,2]
[356691871,1742971840407,-639.51,0.00030936,2]
[356691872,1742971840416,-639.51,0.00030998,2]
[356691873,1742971840425,-239.0,0.00031,2]
[356691874,1742971840434,-400.0,0.00031,2]
[356691875,1742971840443,-286.83056886,0.00031205,2]
[356691876,1742971840452,-200.0,0.00031209,2]
[356691877,1742971840461,-1090.8020942,0.00031245,3]
[356691878,1742971840470,-512.8,0.00031256,7]
[356691879,1742971840479,-510.74,0.00031256,7]
[356691880,1742971840488,-500.0,0.00031256,7]
[356691881,1742971840496,-500.0,0.00031256,7]